lending/lending_fUSD_20240807
["ID","MTS","AMOUNT","RATE_DAILY","PERIOD"]
[334407470,1723047041967,-1050.3006757,0.00011105,2]
[334407471,1723047041976,-3978.09066242,0.00011105,2]
[334407472,1723047041990,-160.92020737,0.00011105,2]
[334407473,1723047042000,-310.0,0.00011105,2]
[334407474,1723047042009,-2839.98033625,0.00011105,2]
[334407475,1723047042019,-3080.91987303,0.00011105,2]
[334407476,1723047042029,-2781.25371525,0.00011105,2]
[334407477,1723047042038,-225.30757236,0.00011105,2]
[334407478,1723047042047,-3402.9798974,0.00011105,2]
[334407479,1723047042059,-2340.89780687,0.00011105,2]
[334407480,1723047042069,-2209.93398544,0.00011105,2]
[334407481,1723047042078,-2145.03106891,0.00011105,2]
[334407482,1723047042088,-1738.76964944,0.00011105,2]
[334407483,1723047042097,-1265.04672783,0.00011105,2]
[334407484,1723047042106,-1500.0,0.00011105,2]
[334407485,1723047042116,-1176.45926667,0.00011105,2]
[334407486,1723047042125,-1184.26383039,0.00011105,2]
[334407487,1723047042134,-1297.73941226,0.00011105,2]
[334407488,1723047042143,-1370.91176247,0.00011105,2]
[334407489,1723047042153,-155.0,0.00011105,2]
[334407490,1723047042163,-284.96139182,0.00011105,2]
[334407491,1723047042173,-921.16736327,0.00011105,2]
[334407492,1723047042182,-155.25550244,0.00011105,2]
[334407493,1723047042191,-1275.10393157,0.00011105,2]
[334407494,1723047042200,-686.73269963,0.00011105,2]
[334407495,1723047042209,-151.0,0.00011105,2]
[334407496,1723047042219,-151.0,0.00011105,2]
[334407497,1723047042228,-225.625574,0.00011105,2]
[334407498,1723047042238,-519.91345954,0.00011105,2]
[334407499,1723047042247,-151.0,0.00011105,2]
[334407500,1723047042256,-151.0,0.00011105,2]
[334407501,1723047042265,-3119.70333999,0.00011105,2]
[334407502,1723047042274,-151.0,0.00011105,2]
[334407503,1723047042283,-649.5964416,0.00011105,2]
[334407504,1723047042292,-151.0,0.00011105,2]
[334407505,1723047042302,-151.0,0.00011105,2]
[334407506,1723047042317,-151.0,0.00011105,2]
[334407507,1723047042326,-151.0,0.00011105,2]
[334407508,1723047042335,-151.0,0.00011105,2]
[334407509,1723047042345,-151.0,0.00011105,2]
[334407510,1723047042353,-306.0,0.00011105,2]
[334407511,1723047042362,-155.0,0.00011105,2]
[334407512,1723047042372,-594.81380735,0.00011105,2]
[334407513,1723047042382,-212.912734,0.00011105,2]
[334407514,1723047042391,-151.0,0.00011105,2]
[334407515,1723047042400,-151.0,0.00011105,2]
[334407516,1723047042410,-447.532233,0.00011105,2]
[334407517,1723047042420,-151.0,0.00011105,2]
[334407518,1723047042429,-447.532233,0.00011105,2]
[334407519,1723047042439,-628.3730026,0.00011105,2]
[334407520,1723047042449,-166.838904,0.00011105,2]
[334407521,1723047042460,-166.838904,0.00011105,2]
[334407522,1723047042470,-151.0,0.00011105,2]
[334407523,1723047042480,-151.0,0.00011105,2]
[334407524,1723047042490,-600.50572099,0.00011105,2]
[334407525,1723047042499,-151.0,0.00011105,2]
[334407526,1723047042508,-151.0,0.00011105,2]
[334407527,1723047042517,-1138.64679831,0.00011105,2]
[334407528,1723047042526,-151.0,0.00011105,2]
[334407529,1723047042535,-155.0,0.00011105,2]
[334407530,1723047042545,-210.97297228,0.00011105,2]
[334407531,1723047042557,-213.583613,0.00011105,2]
[334407532,1723047042567,-151.0,0.00011105,2]
[334407533,1723047042576,-213.583613,0.00011105,2]
[334407534,1723047042585,-4792.31231654,0.00011105,2]
[334407535,1723047042595,-463.643215,0.00011105,2]
[334407536,1723047042605,-463.643215,0.00011105,2]
[334407537,1723047042615,-476.7534528,0.00011105,2]
[334407538,1723047042624,-158.93675276,0.00011105,2]
[334407539,1723047042633,-155.0,0.00011105,2]
[334407540,1723047042642,-155.0,0.00011105,2]
[334407541,1723047042652,-151.0,0.00011105,2]
[334407542,1723047042661,-151.0,0.00011105,2]
[334407543,1723047042670,-203.33375775,0.00011105,2]
[334407544,1723047042681,-165.44102244,0.00011105,2]
[334407545,1723047042692,-522.48038729,0.00011105,2]
[334407546,1723047042703,-258.514674,0.00011105,2]
[334407547,1723047042712,-151.0,0.00011105,2]
[334407548,1723047042721,-151.0,0.00011105,2]
[334407549,1723047042731,-218.82650033,0.00011105,2]
[334407550,1723047042741,-151.0,0.00011105,2]
[334407551,1723047042750,-414.64757615,0.00011105,2]
[334407552,1723047042760,-380.18011514,0.00011105,2]
[334407553,1723047042770,-151.0,0.00011105,2]
[334407554,1723047042779,-151.0,0.00011105,2]
[334407555,1723047042788,-151.0,0.00011105,2]
[334407556,1723047042797,-151.0,0.00011105,2]
[334407557,1723047042809,-151.0,0.00011105,2]
[334407558,1723047042819,-151.0,0.00011105,2]
[334407559,1723047042828,-151.0,0.00011105,2]
[334407560,1723047042837,-151.0,0.00011105,2]
[334407561,1723047042847,-155.0,0.00011105,2]
[334407562,1723047042856,-151.0,0.00011105,2]
[334407563,1723047042865,-151.0,0.00011105,2]
[334407564,1723047042874,-151.0,0.00011105,2]
[334407565,1723047042883,-159.54246192,0.00011105,2]
[334407566,1723047042893,-155.0,0.00011105,2]
[334407568,1723047042902,-155.0,0.00011105,2]
[334407569,1723047042911,-151.0,0.00011105,2]
[334407570,1723047042921,-151.0,0.00011105,2]
[334407572,1723047042930,-164.31632358,0.00011105,2]
[334407573,1723047042939,-151.0,0.00011105,2]
[334407574,1723047042949,-151.0,0.00011105,2]
[334407576,1723047042958,-151.0,0.00011105,2]
[334407577,1723047042967,-151.0,0.00011105,2]
[334407578,1723047042976,-151.0,0.00011105,2]
[334407579,1723047042986,-151.0,0.00011105,2]
[334407580,1723047042999,-151.0,0.00011105,2]
[334407581,1723047043008,-151.0,0.00011105,2]
[334407583,1723047043018,-151.0,0.00011105,2]
[334407584,1723047043027,-151.0,0.00011105,2]
[334407585,1723047043037,-151.0,0.00011105,2]
[334407586,1723047043047,-200.449673,0.00011105,2]
[334407587,1723047043056,-151.0,0.00011105,2]
[334407588,1723047043066,-1243.14923,0.0001111,2]
[334407589,1723047043075,-532.06069874,0.00011161,2]
[334407591,1723047043085,-211.62746688,0.00011161,2]
[334407592,1723047043094,-401.16988804,0.00011161,2]
[334407593,1723047043103,-200.0,0.00011173,2]
[334407594,1723047043112,-200.0,0.00011173,2]
[334407595,1723047043122,-35713.01941175,0.00011186,2]
[334407596,1723047043131,-22648.60761236,0.00011186,2]
[334407597,1723047043140,-719.68870544,0.00011186,2]
[334407599,1723047043150,-151.0,0.00011186,2]
[334407601,1723047043160,-151.0,0.00011186,2]
[334407602,1723047043169,-151.0,0.00011186,2]
[334407603,1723047043178,-151.0,0.00011186,2]
[334407604,1723047043187,-151.0,0.00011186,2]
[334407606,1723047043196,-151.0,0.00011186,2]
[334407608,1723047043207,-151.0,0.00011186,2]
[334407610,1723047043217,-151.0,0.00011186,2]
[334407611,1723047043227,-151.0,0.00011186,2]
[334407612,1723047043237,-151.0,0.00011186,2]
[334407613,1723047043247,-151.0,0.00011186,2]
[334407614,1723047043257,-183.58229,0.00011186,2]
[334407615,1723047043266,-151.0,0.00011186,2]
[334407616,1723047043276,-151.0,0.00011186,2]
[334407617,1723047043285,-151.0,0.00011186,2]
[334407618,1723047043294,-151.0,0.00011186,2]
[334407619,1723047043305,-218.704661,0.00011186,2]
[334407620,1723047043315,-151.0,0.00011186,2]
[334407621,1723047043324,-151.0,0.00011186,2]
[334407622,1723047043333,-151.0,0.00011186,2]
[334407623,1723047043343,-154.615282,0.00011186,2]
[334407624,1723047043353,-202.04571,0.00011186,2]
[334407626,1723047043363,-164.33652674,0.00011206,2]
[334407627,1723047043372,-484.99646143,0.00011206,2]
[334407628,1723047043381,-447.532233,0.00011221,2]
[334407629,1723047043391,-447.532233,0.00011221,2]
[334407630,1723047043400,-151.0,0.00011221,2]
[334407631,1723047043410,-151.0,0.00011221,2]
[334407632,1723047043419,-212.454136,0.00011221,2]
[334407633,1723047043428,-213.583613,0.00011221,2]
[334407634,1723047043437,-213.583613,0.00011221,2]
[334407636,1723047043447,-463.643215,0.00011221,2]
[334407639,1723047043456,-463.643215,0.00011221,2]
[334407641,1723047043465,-184.27,0.00011264,2]
[334407643,1723047043475,-348.42,0.00011278,2]
[334407644,1723047043484,-411.5666266,0.00011293,2]
[334407646,1723047043494,-439.89968088,0.00011322,2]
[334407648,1723047043503,-723.10580785,0.00011324,2]
[334407650,1723047043512,-522.06611583,0.00011324,2]
[334407652,1723047043522,-205.85700732,0.00011324,2]
[334407653,1723047043531,-151.0,0.00011333,2]
[334407654,1723047043541,-151.0,0.00011333,2]
[334407655,1723047043550,-166.838904,0.00011333,2]
[334407656,1723047043562,-166.838904,0.00011333,2]
[334407657,1723047043578,-151.0,0.00011333,2]
[334407658,1723047043587,-151.0,0.00011333,2]
[334407659,1723047043596,-174.248,0.0001135,2]
[334407660,1723047043605,-151.0,0.0001138,2]
[334407661,1723047043615,-239.356272,0.0001138,2]
[334407662,1723047043624,-151.0,0.0001138,2]
[334407663,1723047043633,-151.0,0.0001138,2]
[334407664,1723047043643,-151.0,0.0001138,2]
[334407666,1723047043654,-176.224569,0.0001138,2]
[334407668,1723047043663,-205.85700732,0.00011384,2]
[334407669,1723047043672,-359.26552808,0.00011384,2]
[334407670,1723047043681,-1243.14924,0.0001142,2]
[334407671,1723047043691,-1000.0,0.00011671,2]
[334407672,1723047043699,-1243.14923,0.0001173,2]
[334407673,1723047043709,-270.46597516,0.0001185,2]
[334407674,1723047043718,-206.68578726,0.0001185,2]
[334407675,1723047043728,-454.39810402,0.00011896,2]
[334407676,1723047043739,-174.248,0.00011946,2]
[334407677,1723047043748,-528.71768008,0.00011959,2]
[334407678,1723047043757,-587.0,0.00011961,2]
[334407679,1723047043766,-1243.14923,0.0001205,2]
[334407680,1723047043776,-1243.14924,0.0001235,2]
[334407681,1723047043785,-5000.0,0.0001236,2]
[334407682,1723047043795,-2193.77034456,0.0001236,2]
[334407683,1723047043804,-493.40828131,0.0001236,2]
[334407684,1723047043819,-328.11060008,0.0001236,2]
[334407685,1723047043828,-297.369235,0.0001236,2]
[334407686,1723047043837,-297.369235,0.00012391,2]
[334407687,1723047043847,-1725.0,0.00012397,2]
[334407688,1723047043856,-184.27,0.00012516,2]
[334407689,1723047043869,-348.42,0.00012531,2]
[334407690,1723047043879,-151.0,0.00012539,2]
[334407691,1723047043889,-151.0,0.00012539,2]
[334407692,1723047043899,-151.0,0.00012539,2]
[334407693,1723047043908,-447.532233,0.00012539,2]
[334407694,1723047043917,-447.532233,0.00012539,2]
[334407695,1723047043927,-151.0,0.00012539,2]
[334407696,1723047043937,-166.838904,0.00012539,2]
[334407697,1723047043946,-166.838904,0.00012539,2]
[334407698,1723047043955,-151.0,0.00012539,2]
[334407699,1723047043964,-151.0,0.00012539,2]
[334407700,1723047043974,-151.0,0.00012539,2]
[334407701,1723047043983,-213.583613,0.00012539,2]
[334407702,1723047043994,-213.583613,0.00012539,2]
[334407703,1723047044003,-463.643215,0.00012539,2]
[334407704,1723047044012,-463.643215,0.00012539,2]
[334407705,1723047044023,-284.638072,0.00012539,2]
[334407706,1723047044035,-151.0,0.00012539,2]
[334407707,1723047044045,-151.0,0.00012539,2]
[334407708,1723047044056,-151.0,0.00012539,2]
[334407709,1723047044076,-151.0,0.00012539,2]
[334407710,1723047044086,-259.55392,0.00012539,2]
[334407711,1723047044095,-165.79223,0.00012539,2]
[334407712,1723047044105,-151.0,0.00012539,2]
[334407713,1723047044115,-151.0,0.00012539,2]
[334407714,1723047044279,-151.0,0.00012539,2]
[334407715,1723047044317,-151.0,0.00012539,2]
[334407716,1723047044327,-151.0,0.00012539,2]
[334407717,1723047044337,-151.0,0.00012539,2]
[334407718,1723047044346,-151.0,0.00012539,2]
[334407719,1723047044356,-243.946495,0.00012539,2]
[334407720,1723047044366,-208.97176,0.00012539,2]
[334407721,1723047044375,-151.0,0.00012539,2]
[334407722,1723047044385,-468560.24679643,0.0001254,2]
[334407723,1723047044395,-400.0,0.00012542,2]
[334407724,1723047044404,-400.0,0.00012542,2]
[334407725,1723047044413,-200.42850144,0.00012581,2]
[334407726,1723047044423,-364.03356845,0.00012613,2]
[334407727,1723047044432,-255.09228319,0.00012613,2]
[334407728,1723047044442,-155.69036707,0.00012665,2]
[334407729,1723047044452,-243.154171,0.00012666,2]
[334407730,1723047044462,-298.52611506,0.00012681,2]
[334407731,1723047044471,-330.06238007,0.0001269,2]
[334407732,1723047044480,-265.33096073,0.0001269,2]
[334407733,1723047044490,-653.37427882,0.00012696,2]
[334407734,1723047044501,-257.82119532,0.00012696,2]
[334407735,1723047044510,-309.16579736,0.00012696,2]
[334407736,1723047044520,-506.24,0.00012712,2]
[334407737,1723047044529,-236.24535301,0.00012749,2]
[334407738,1723047044538,-197.05301904,0.00012749,2]
[334407739,1723047044548,-1074.23899927,0.00012818,2]
[334407740,1723047044560,-264.38460309,0.00012818,2]
[334407741,1723047044569,-1074.23899927,0.00012818,2]
[334407742,1723047044579,-155.0,0.00012855,2]
[334407743,1723047044588,-157.48,0.00012893,2]
[334407744,1723047044598,-1000.0,0.00012968,2]
[334407745,1723047044607,-300.0,0.00013,2]
[334407746,1723047044616,-155.0,0.00013,2]
[334407747,1723047044626,-823.0,0.00013157,2]
[334407748,1723047044635,-200.0,0.00013188,2]
[334407749,1723047044644,-200.0,0.00013188,2]
[334407750,1723047044654,-200.0,0.00013188,2]
[334407751,1723047044663,-367.71679801,0.00013398,2]
[334407752,1723047044673,-152.0,0.00013481,2]
[334407753,1723047044683,-313.59536619,0.00013489,2]
[334407754,1723047044692,-155.0,0.00013499,2]
[334407755,1723047044702,-155.0,0.00013561,2]
[334407756,1723047044711,-169.46887535,0.00013597,2]
[334407757,1723047044720,-694.71,0.00013612,2]
[334407758,1723047044730,-202.81555917,0.00013648,2]
[334407759,1723047044739,-500.0,0.00013652,2]
[334407760,1723047044749,-500.0,0.00013661,2]
[334407761,1723047044759,-500.0,0.00013669,2]
[334407762,1723047044768,-500.0,0.00013678,2]
[334407763,1723047044777,-500.0,0.00013687,2]
[334407764,1723047044786,-500.0,0.00013696,2]
[334407765,1723047044796,-2751.0,0.00013699,2]
[334407766,1723047044807,-500.0,0.00013699,2]
[334407767,1723047044817,-200.0,0.00013699,2]
[334407768,1723047044826,-169.77,0.00013699,2]
[334407769,1723047044836,-150.0,0.00013699,2]
[334407770,1723047044846,-500.0,0.00013705,2]
[334407771,1723047044855,-500.0,0.00013713,2]
[334407772,1723047044866,-547.5804574,0.0001372,2]
[334407773,1723047044876,-500.0,0.00013722,2]
[334407774,1723047044886,-500.0,0.00013731,2]
[334407775,1723047044896,-500.0,0.0001374,2]
[334407776,1723047044908,-500.0,0.00013749,2]
[334407777,1723047044919,-500.0,0.00013757,2]
[334407778,1723047044929,-500.0,0.00013766,2]
[334407779,1723047044939,-184.27,0.00013768,2]
[334407780,1723047044950,-500.0,0.00013775,2]
[334407781,1723047044960,-7462.7507924,0.00013784,2]
[334407782,1723047044970,-500.0,0.00013784,2]
[334407783,1723047044980,-348.42,0.00013785,2]
[334407784,1723047044990,-500.0,0.00013793,2]
[334407785,1723047045003,-197.958768,0.000138,2]
[334407786,1723047045013,-157.434728,0.000138,2]
[334407787,1723047045023,-447.532233,0.000138,2]
[334407788,1723047045033,-447.532233,0.000138,2]
[334407789,1723047045043,-166.838904,0.000138,2]
[334407790,1723047045052,-166.838904,0.000138,2]
[334407791,1723047045064,-151.0,0.000138,2]
[334407792,1723047045076,-151.0,0.000138,2]
[334407793,1723047045085,-213.583613,0.000138,2]
[334407794,1723047045094,-213.583613,0.000138,2]
[334407795,1723047045104,-463.643215,0.000138,2]
[334407796,1723047045115,-463.643215,0.000138,2]
[334407797,1723047045124,-156.90435468,0.000138,2]
[334407798,1723047045133,-170553.59489762,0.000138,3]
[334407827,1723047046590,-339.035,0.000138,3]
[334407828,1723047046602,-803.12091086,0.000138,3]
[334407829,1723047046613,-483.43034925,0.000138,3]
[334407830,1723047046624,-563.5219352,0.000138,3]
[334407831,1723047046636,-38521.4251726,0.000138,3]
[334407832,1723047046647,-26632.14351254,0.000138,3]
[334407833,1723047046658,-36776.13648693,0.000138,3]
[334407834,1723047046667,-151.0,0.000138,2]
[334407836,1723047046677,-151.0,0.000138,2]
[334407837,1723047046686,-151.0,0.000138,2]
[334407838,1723047046695,-500.0,0.00013801,2]
[334407839,1723047046705,-500.0,0.0001381,2]
[334407840,1723047046714,-500.0,0.00013819,2]
[334407841,1723047046723,-500.0,0.00013828,2]
[334407842,1723047046733,-500.0,0.00013837,2]
[334407843,1723047046742,-500.0,0.00013845,2]
[334407844,1723047046789,-500.0,0.00013854,2]
[334407845,1723047046799,-500.0,0.00013863,2]
[334407846,1723047046813,-500.0,0.00013872,2]
[334407847,1723047046822,-256.06295204,0.00013873,2]
[334407848,1723047046831,-500.0,0.00013881,2]
[334407849,1723047046840,-151.0,0.000139,2]
[334407850,1723047046850,-151.0,0.000139,2]
[334407851,1723047046859,-151.0,0.000139,2]
[334407852,1723047046869,-206.576376,0.000139,2]
[334407853,1723047046879,-151.0,0.000139,2]
[334407854,1723047046891,-151.0,0.000139,2]
[334407855,1723047046900,-456.5,0.00013973,2]
[334407856,1723047046910,-156.18,0.00013973,2]
[334407857,1723047046919,-164.34,0.00013973,2]
[334407858,1723047046929,-512.41,0.00013973,2]
[334407859,1723047046938,-210.91712052,0.00013979,2]
[334407860,1723047046948,-155.0,0.00013986,2]
[334407861,1723047046958,-155.0,0.00013986,2]
[334407862,1723047046967,-347.54171027,0.00013989,2]
[334407863,1723047046976,-250.0,0.00014247,2]
[334407864,1723047046986,-1000.0,0.00014264,2]
[334407865,1723047046998,-179.67,0.00014361,2]
[334407866,1723047047008,-155.0,0.0001443,2]
[334407867,1723047047017,-1152.0,0.00014472,2]
[334407868,1723047047026,-600.0,0.00014546,2]
[334407869,1723047047035,-305.62058988,0.00014557,2]
[334407870,1723047047045,-400.0,0.00014557,2]
[334407871,1723047047054,-400.0,0.00014557,2]
[334407872,1723047047067,-200.23498862,0.00014579,2]
[334407873,1723047047079,-350.0,0.00014795,2]
[334407874,1723047047088,-506.24,0.00014959,2]
[334407875,1723047047098,-282.08119359,0.00015,2]
[334407876,1723047047108,-25004.1560878,0.00015,2]
[334407877,1723047047117,-494.0,0.00015,2]
[334407878,1723047047127,-184.27,0.00015019,2]
[334407879,1723047047137,-348.42,0.00015038,2]
[334407880,1723047047147,-450.0,0.00015342,2]
[334407881,1723047047156,-624.10934651,0.00015369,2]
[334407882,1723047047166,-175.53,0.00015527,2]
[334407883,1723047047175,-1000.0,0.00015561,2]
[334407884,1723047047185,-167.0,0.00015831,2]
[334407885,1723047047194,-550.0,0.0001589,2]
[334407886,1723047047204,-1613.0,0.00015919,2]
[334407887,1723047047214,-155.0,0.00016,2]
[334407888,1723047047224,-2605.936644,0.00016,2]
[334407889,1723047047233,-74.01670602,0.00016178,2]
[334407890,1723047047579,-151.0,0.00011,2]
[334407891,1723047047590,-163.872346,0.00011105,2]
[334407892,1723047047599,-297.6445013,0.00011105,2]
[334407893,1723047047611,-234.41619744,0.00011105,2]
[334407894,1723047047620,-357.30635393,0.0001269,2]
[334407895,1723047047629,-155.0,0.00013489,2]
[334407896,1723047047639,-77.98329398,0.00016178,2]
[334407897,1723047047648,-10000.0,0.00016316,2]
[334407898,1723047047658,-167.0,0.00016354,2]
[334407899,1723047047667,-169.46887535,0.00016421,2]
[334407900,1723047047676,-1000.0,0.00016428,2]
[334407901,1723047047686,-151.0,0.00016438,2]
[334407902,1723047047695,-151.0,0.00016438,2]
[334407903,1723047047705,-236.445339,0.00016438,2]
[334407904,1723047047714,-705.9076862,0.00016438,2]
[334407905,1723047047724,-3092.37,0.000165,2]
[334407906,1723047047733,-1763.4763965,0.0001661,2]
[334407907,1723047047743,-9477.05776712,0.00016781,7]
[334407908,1723047047752,-247.0,0.00016865,2]
[334407909,1723047047763,-167.0,0.00016876,2]
[334407910,1723047047773,-1007.07,0.00016922,2]
[334407911,1723047047782,-1405.50443999,0.00016999,2]
[334407912,1723047047791,-205.40364118,0.00016999,2]
[334407913,1723047047800,-155.0,0.00016999,2]
[334407914,1723047047814,-289.0,0.00016999,2]
[334407915,1723047047824,-506.24,0.00017205,2]
[334407916,1723047047833,-155.0,0.00017259,2]
[334407917,1723047047842,-834.88,0.00017329,2]
[334407918,1723047047851,-420.77,0.00017329,2]
[334407919,1723047047860,-420.77,0.00017329,2]
[334407920,1723047047869,-834.88,0.00017329,2]
[334407921,1723047047879,-834.88,0.00017329,2]
[334407922,1723047047888,-834.88,0.00017329,2]
[334407923,1723047047898,-834.88,0.00017329,2]
[334407924,1723047047907,-1039.7,0.00017329,2]
[334407925,1723047047917,-5303.53298543,0.00017392,2]
[334407926,1723047047926,-167.0,0.00017399,2]
[334407927,1723047047935,-2258.0,0.00017511,2]
[334407928,1723047047945,-155.0,0.00017782,2]
[334407929,1723047047954,-534.50786602,0.00017897,2]
[334407930,1723047047963,-167.0,0.00017921,2]
[334407931,1723047047973,-676.06380019,0.00018,2]
[334407932,1723047047984,-308.13974125,0.00018,2]
[334407933,1723047047999,-310.808,0.00018233,2]
[334407934,1723047048008,-3092.37,0.000183,2]
[334407935,1723047048017,-167.0,0.00018444,2]
[334407936,1723047048027,-2442.6021425,0.000186,2]
[334407937,1723047048038,-500.0,0.00018668,2]
[334407938,1723047048047,-500.0,0.0001871,2]
[334407939,1723047048059,-500.0,0.00018743,2]
[334407940,1723047048069,-18311.91645065,0.0001888,2]
[334407941,1723047048081,-1329.54172578,0.0001888,2]
[334407942,1723047048096,-11743.41660409,0.0001888,2]
[334407943,1723047048106,-447.532233,0.0001888,2]
[334407944,1723047048115,-447.532233,0.0001888,2]
[334407945,1723047048124,-166.838904,0.0001888,2]
[334407946,1723047048133,-166.838904,0.0001888,2]
[334407947,1723047048143,-287.866496,0.0001888,2]
[334407948,1723047048151,-151.0,0.0001888,2]
[334407949,1723047048160,-213.583613,0.0001888,2]
[334407950,1723047048170,-213.583613,0.0001888,2]
[334407951,1723047048179,-463.643215,0.0001888,2]
[334407952,1723047048188,-463.643215,0.0001888,2]
[334407953,1723047048198,-151.0,0.0001888,2]
[334407954,1723047048208,-151.0,0.0001888,2]
[334407955,1723047048217,-151.0,0.0001888,2]
[334407956,1723047048227,-151.0,0.0001888,2]
[334407957,1723047048236,-203.94746,0.0001888,2]
[334407958,1723047048245,-151.0,0.0001888,2]
[334407959,1723047048255,-151.0,0.0001888,2]
[334407960,1723047048264,-296.78958,0.0001888,2]
[334407961,1723047048273,-153.87,0.000189,2]
[334407962,1723047048282,-153.87,0.000189,2]
[334407963,1723047048291,-568.59804658,0.00019,2]
[334407964,1723047048301,-450.00362509,0.00019,2]
[334407965,1723047048312,-500.0,0.00019038,2]
[334407966,1723047048322,-500.0,0.00019041,2]
[334407967,1723047048331,-155.0,0.00019177,2]
[334407968,1723047048340,-500.0,0.00019215,2]
[334407969,1723047048349,-447.532233,0.00019236,2]
[334407970,1723047048359,-447.532233,0.00019236,2]
[334407971,1723047048368,-166.838904,0.00019236,2]
[334407972,1723047048378,-166.838904,0.00019236,2]
[334407973,1723047048387,-151.0,0.00019236,2]
[334407974,1723047048396,-213.583613,0.00019236,2]
[334407975,1723047048405,-213.583613,0.00019236,2]
[334407976,1723047048414,-463.643215,0.00019236,2]
[334407977,1723047048423,-463.643215,0.00019236,2]
[334407978,1723047048432,-289.520562,0.00019236,2]
[334407979,1723047048442,-151.0,0.00019236,2]
[334407980,1723047048451,-191.360346,0.00019236,2]
[334407981,1723047048460,-151.0,0.00019236,2]
[334407982,1723047048470,-151.0,0.00019236,2]
[334407983,1723047048479,-151.0,0.00019236,2]
[334407984,1723047048488,-41053.61542025,0.00019236,2]
[334407985,1723047048499,-1232.8790104,0.00019236,2]
[334407986,1723047049034,-1488.3590197,0.000107,2]
[334407987,1723047049045,-612.475,0.000107,2]
[334407988,1723047049057,-399.1659803,0.000107,2]
[334407989,1723047049069,-1035.62567135,0.00010899,2]
[334407990,1723047049082,-278.12704168,0.00010899,2]
[334407991,1723047049092,-283.14207692,0.00019236,2]
[334407992,1723047049103,-184034.60944555,0.00019236,2]
[334407993,1723047049114,-2924.57046392,0.00019236,2]
[334407994,1723047049134,-522.88362862,0.00019236,2]
[334407995,1723047049145,-266.39857557,0.00019236,2]
[334407996,1723047049156,-500.0,0.00019236,2]
[334407997,1723047049167,-12647.5407592,0.00019236,2]
[334407998,1723047049178,-2677.19619654,0.00019236,2]
[334407999,1723047049189,-1250.0945842,0.00019236,2]
[334408000,1723047049200,-2218.84058109,0.00019236,2]
[334408001,1723047049211,-12179.7052902,0.00019236,2]
[334408002,1723047049229,-1303.17693193,0.00019236,2]
[334408003,1723047049254,-291.57124862,0.00019236,2]
[334408004,1723047073317,3000.0,4e-05,15]
[334408005,1723047073341,3000.0,4e-05,15]
[334408006,1723047073364,34956.30306097,4e-05,15]
[334408007,1723047104899,10530.0262807,5e-05,2]
[334408008,1723047105062,476.7534528,5e-05,2]
[334408009,1723047105534,649.5964416,4.848e-05,2]
[334408010,1723047106406,723.10580785,4.848e-05,2]
[334408011,1723047108664,2839.98033625,5e-05,2]
[334408012,1723047110846,206.68578726,4.848e-05,2]
[334408013,1723047111924,295.74729801,5e-05,2]
[334408014,1723047112601,532.06069874,5e-05,2]
[334408015,1723047112789,1176.45926667,5e-05,2]
[334408016,1723047113079,158.93675276,5e-05,2]
[334408017,1723047113433,155.0,5e-05,2]
[334408018,1723047113755,265.33096073,5e-05,2]
[334408019,1723047114045,218.82650033,5e-05,2]
[334408020,1723047115609,686.73269963,4.848e-05,2]